bitfinex-derivatives/quotes_ETHF0:USTF0_20260223
["timestamp","ask_amount","ask_price","bid_price","bid_amount"]
[1771832568741,0.00464899,1885.2,1884.3,0.60650248]
[1771832569942,0.58268132,1885.2,1884.3,0.60650248]
[1771832573249,0.00464899,1885.2,1884.3,0.60650248]
[1771832573549,0.57803233,1885.1,1884.3,0.60650248]
[1771832575651,0.57803233,1884.9,1884.3,0.60650248]
[1771832580854,0.00464899,1885.2,1884.3,0.60650248]
[1771832581060,0.48884159,1885.1,1884.3,0.60650248]
[1771832581259,0.00464899,1885.2,1884.3,0.60650248]
[1771832581452,0.48886928,1885.1,1884.3,0.60650248]
[1771832581658,0.00464899,1885.2,1884.3,0.60650248]
[1771832581855,0.48886928,1885.1,1884.3,0.60650248]
[1771832582054,0.00464899,1885.2,1884.3,0.60650248]
[1771832582257,0.48887047,1885.1,1884.3,0.60650248]
[1771832582557,0.58268132,1885.2,1884.3,0.60650248]
[1771832582760,0.48887423,1885.1,1884.3,0.60650248]
[1771832582962,0.58268132,1885.2,1884.3,0.60650248]
[1771832583162,0.48887423,1885.1,1884.3,0.60650248]
[1771832583358,0.58268132,1885.2,1884.3,0.60650248]
[1771832583559,0.48887969,1885.1,1884.3,0.60650248]
[1771832583761,0.58268132,1885.2,1884.3,0.60650248]
[1771832584061,0.48888045,1885.1,1884.3,0.60650248]
[1771832584262,0.58268132,1885.2,1884.3,0.60650248]
[1771832584561,0.48887949,1885.1,1884.3,0.60650248]
[1771832584759,0.58268132,1885.2,1884.3,0.60650248]
[1771832584966,0.48887951,1885.1,1884.3,0.60650248]
[1771832585159,0.58268132,1885.2,1884.3,0.60650248]
[1771832585360,0.48885961,1885.1,1884.3,0.60650248]
[1771832585562,0.58268132,1885.2,1884.3,0.60650248]
[1771832585762,0.48886805,1885.1,1884.3,0.60650248]
[1771832586068,0.58268132,1885.2,1884.3,0.60650248]
[1771832586367,0.48884494,1885.1,1884.3,0.60650248]
[1771832586569,0.58268132,1885.2,1884.3,0.60650248]
[1771832586769,1.06688687,1885.1,1884.3,0.60650248]
[1771832586970,0.57803233,1885.1,1884.3,0.60650248]
[1771832587272,0.57803233,1885.1,1884.5,0.60650248]
[1771832591769,0.57803233,1884.9,1884.5,0.60650248]
[1771832595081,1.0677686,1884.8,1884.5,0.60650248]
[1771832595381,0.57803233,1885.1,1884.5,0.60650248]
[1771832595582,0.57803233,1884.9,1884.5,0.60650248]
[1771832596184,0.48982363,1884.8,1884.5,0.60650248]
[1771832596480,0.57803233,1884.9,1884.5,0.60650248]
[1771832596674,0.48981308,1884.8,1884.5,0.60650248]
[1771832596881,0.57803233,1884.9,1884.5,0.60650248]
[1771832597082,0.48981308,1884.8,1884.5,0.60650248]
[1771832597281,0.57803233,1884.9,1884.5,0.60650248]
[1771832597482,0.48981437,1884.8,1884.5,0.60650248]
[1771832597688,0.57803233,1884.9,1884.5,0.60650248]
[1771832597882,1.09978712,1884.8,1884.5,0.60650248]
[1771832598180,0.60997275,1884.8,1884.5,0.60650248]
[1771832599984,0.60997275,1885.1,1884.5,0.60650248]
[1771832600185,7.06342808,1885.0,1884.5,0.60650248]
[1771832600385,0.48981421,1884.9,1884.5,0.60650248]
[1771832600589,0.60997275,1885.1,1884.5,0.60650248]
[1771832600786,0.60997275,1884.9,1884.5,0.60650248]
[1771832603189,0.60997275,1885.1,1884.5,0.60650248]
[1771832603486,7.07291,1885.0,1884.5,0.60650248]
[1771832603784,0.00464899,1885.2,1884.5,0.60650248]
[1771832603988,7.13768483,1885.1,1884.7,0.55267612]
[1771832604184,0.00464899,1885.2,1884.7,0.55267612]
[1771832604384,0.61462174,1885.2,1884.7,0.55267612]
[1771832606890,0.00464899,1885.2,1884.7,0.55267612]
[1771832607190,0.61462174,1885.2,1884.7,0.55267612]
[1771832608290,0.61462174,1885.2,1884.7,0.55677957]
[1771832611099,0.00464899,1885.2,1884.7,0.55677957]
[1771832611494,0.60997275,1885.4,1884.9,0.55267612]
[1771832611792,0.60997275,1885.6,1884.9,0.55267612]
[1771832612099,7.25466348,1885.5,1884.9,0.55267612]
[1771832612292,0.60997275,1885.5,1884.9,0.55267612]
[1771832612498,0.61657283,1885.5,1884.9,0.55267612]
[1771832615898,1.0954008,1885.4,1884.9,0.55267612]
[1771832616098,0.60997275,1885.4,1884.9,0.55267612]
[1771832620499,0.61657283,1885.5,1885.0,0.55267612]
[1771832620998,0.61657283,1885.5,1884.7,0.55677957]
[1771832621190,0.60997275,1885.3,1884.7,0.55677957]
[1771832624305,0.60997275,1885.3,1884.7,0.00410345]
[1771832624505,0.60997275,1885.1,1884.7,0.00410345]
[1771832627506,0.60997275,1885.1,1884.5,0.55267612]
[1771832628506,0.60997275,1885.1,1884.5,0.55668244]
[1771832631711,0.60390645,1884.9,1884.5,0.55668244]
[1771832632106,0.60390645,1885.2,1884.5,0.55668244]
[1771832632306,0.60390645,1885.0,1884.5,0.55668244]
[1771832632807,0.60390645,1885.4,1884.5,0.55668244]
[1771832633013,0.60390645,1885.2,1884.5,0.55668244]
[1771832633311,0.60390645,1885.0,1884.6,0.55842246]
[1771832634006,1.80806866,1885.5,1884.6,0.55842246]
[1771832634209,0.60390645,1885.3,1884.6,0.55842246]
[1771832634410,1.0892791,1885.2,1884.6,0.55842246]
[1771832634608,1.0892791,1885.1,1884.6,0.55842246]
[1771832634808,0.60390645,1885.1,1884.6,0.55842246]
[1771832636915,1.80806866,1885.5,1884.6,0.55842246]
[1771832637110,0.60390645,1885.3,1884.6,0.55842246]
[1771832637312,0.60390645,1885.1,1884.6,0.55842246]
[1771832643616,0.60390645,1885.3,1884.8,0.55842246]
[1771832643812,1.08932085,1885.2,1884.8,0.55842246]
[1771832644116,0.60390645,1885.2,1884.8,0.55842246]
[1771832644617,0.61050653,1885.5,1885.0,0.55842246]
[1771832644816,1.08937896,1885.4,1885.0,0.55842246]
[1771832645016,0.48547251,1885.3,1885.0,0.55842246]
[1771832645217,0.60390645,1885.4,1885.0,0.55842246]
[1771832645412,0.48551387,1885.3,1885.0,0.55842246]
[1771832645619,0.60390645,1885.4,1885.0,0.55842246]
[1771832645816,0.48551802,1885.3,1885.0,0.55842246]
[1771832646015,0.60390645,1885.4,1885.0,0.55842246]
[1771832646313,0.48551805,1885.3,1885.0,0.55842246]
[1771832646513,0.60390645,1885.4,1885.0,0.55842246]
[1771832653712,0.60390645,1885.4,1884.8,0.55842246]
[1771832653917,0.60390645,1885.3,1884.8,0.55842246]
[1771832665427,0.00660008,1885.5,1884.8,0.55842246]
[1771832665628,7.86600947,1885.4,1884.8,2.35989104]
[1771832665828,1.07408731,1885.3,1884.9,0.57474105]
[1771832666036,0.58831982,1885.3,1884.9,0.57474105]
[1771832669030,0.58831982,1885.3,1884.7,0.57474105]
[1771832673436,1.07462923,1885.2,1884.7,0.57474105]
[1771832673734,0.58831982,1885.2,1884.7,0.57474105]
[1771832700354,0.58831982,1885.2,1884.5,0.5656764]
[1771832700561,0.59960552,1885.0,1884.5,0.5656764]
[1771832701257,0.59960552,1885.1,1884.5,0.5656764]
[1771832701460,0.4862635,1885.0,1884.5,0.5656764]
[1771832701660,0.59960552,1885.1,1884.5,0.5656764]
[1771832701961,0.51023186,1885.0,1884.5,0.5656764]
[1771832702157,0.59960552,1885.1,1884.5,0.5656764]
[1771832702357,0.59960552,1885.3,1884.6,0.56167008]
[1771832702557,8.08227825,1885.2,1884.6,0.56167008]
[1771832702863,1.10975054,1885.1,1884.6,0.56167008]
[1771832703062,0.59960552,1885.1,1884.6,0.56167008]
[1771832703264,0.57722397,1885.4,1884.6,0.56167008]
[1771832703463,0.57722397,1885.2,1884.6,0.56167008]
[1771832703664,0.51014507,1885.1,1884.6,0.56167008]
[1771832703863,0.57722397,1885.2,1884.6,0.56167008]
[1771832704165,0.51014506,1885.1,1884.6,0.56167008]
[1771832704362,0.00568096,1885.1,1884.6,0.56167008]
[1771832707265,0.5736866,1885.1,1884.6,0.56167008]
[1771832707464,0.00568096,1885.1,1884.6,0.56167008]
[1771832710262,0.57194697,1885.6,1884.7,0.56167008]
[1771832710466,0.51012608,1885.5,1884.9,0.56167008]
[1771832710666,0.57194697,1885.6,1884.9,0.56167008]
[1771832710868,0.51013117,1885.5,1884.9,0.56167008]
[1771832711066,0.57194697,1885.6,1884.9,0.56167008]
[1771832711266,0.00522343,1885.6,1885.1,0.56167008]
[1771832711464,0.57786013,1885.6,1885.1,0.56167008]
[1771832712159,0.00522343,1885.6,1885.1,0.56167008]
[1771832713867,0.5726367,1885.8,1885.6,0.15196368]
[1771832714067,1.08464127,1885.7,1885.4,0.56167008]
[1771832714267,0.57522344,1885.7,1885.4,0.56167008]
[1771832714671,0.57522344,1885.7,1884.9,0.56167008]
[1771832714870,0.57899254,1885.7,1884.9,0.56167008]
[1771832715371,0.57899254,1885.7,1884.6,1.80114246]
[1771832715372,0.57546156,1886.1,1885.3,0.56167008]
[1771832715567,0.57546156,1885.9,1885.3,0.56167008]
[1771832715768,0.57546156,1885.7,1885.1,0.56167008]
[1771832716571,0.57980826,1885.7,1885.1,0.56167008]
[1771832717766,0.0043467,1885.7,1885.1,0.56167008]
[1771832718072,0.58814105,1885.7,1885.1,0.56167008]
[1771832720974,0.0043467,1885.7,1885.1,2.36281254]
[1771832721276,0.0043467,1885.7,1885.2,0.55506003]
[1771832722578,0.59369199,1885.7,1885.2,0.55506003]
[1771832723075,0.0043467,1885.7,1885.2,0.55506003]
[1771832724881,0.58934529,1886.2,1885.5,0.55506003]
[1771832725980,0.59501467,1886.2,1885.5,0.55506003]
[1771832727378,0.57501467,1886.2,1885.5,0.55506003]
[1771832727883,0.00566938,1886.2,1885.5,0.55506003]
[1771832728485,0.5672144,1886.6,1885.5,0.55506003]
[1771832728680,0.57288378,1886.4,1885.5,0.55506003]
[1771832728979,0.57288378,1886.4,1885.5,2.35620249]
[1771832729186,0.57288378,1886.7,1885.6,0.55506003]
[1771832729485,0.57286524,1886.5,1885.6,0.55506003]
[1771832732484,0.58005113,1886.7,1885.9,0.55506003]
[1771832732687,0.58005113,1886.7,1885.9,0.56110554]
[1771832737687,0.58934529,1886.5,1885.8,0.55506003]
[1771832738684,0.58934529,1886.5,1885.8,0.56148576]
[1771832740890,0.59618697,1886.7,1885.8,0.56148576]
[1771832741091,1.09726291,1886.6,1885.8,0.56148576]
[1771832741292,0.58934529,1886.6,1885.8,0.56148576]
[1771832746697,0.59618697,1886.7,1885.8,0.56148576]
[1771832748396,1.09100092,1886.6,1885.8,0.56148576]
[1771832748597,0.58271427,1886.6,1885.8,0.56148576]
[1771832752298,0.50904512,1886.5,1885.8,0.56148576]
[1771832752499,0.58271427,1886.6,1885.8,0.56148576]
[1771832752699,0.50904512,1886.5,1885.8,0.56148576]
[1771832752896,0.58271427,1886.6,1885.8,0.56148576]
[1771832754398,0.58271427,1886.4,1885.8,0.56148576]
[1771832755306,0.58271427,1886.4,1885.9,0.59240059]
[1771832757802,0.56935251,1886.6,1885.9,0.59240059]
[1771832758003,8.02194262,1886.5,1885.9,0.59240059]
[1771832758203,0.51000007,1886.4,1885.9,0.59240059]
[1771832758404,0.56935251,1886.5,1885.9,0.59240059]
[1771832758706,0.5100417,1886.4,1885.9,0.59240059]
[1771832758906,0.56935251,1886.5,1885.9,0.59240059]
[1771832759202,0.5100417,1886.4,1885.9,0.59240059]
[1771832759405,0.56935251,1886.6,1885.9,0.59240059]
[1771832759600,7.4540472,1886.5,1886.1,0.59240059]
[1771832759803,0.51007275,1886.4,1886.1,0.59240059]
[1771832760102,0.56663999,1886.6,1886.1,0.59240059]
[1771832760304,0.51007275,1886.5,1886.3,0.59240059]
[1771832760501,0.57348167,1886.7,1886.3,0.59240059]
[1771832760700,0.51010512,1886.6,1886.3,0.59240059]
[1771832760901,0.00684168,1886.7,1886.3,0.59240059]
[1771832761404,0.56663999,1887.1,1886.7,0.59240059]
[1771832761599,0.56722132,1887.3,1886.7,0.59240059]
[1771832761904,0.56722132,1887.1,1886.7,0.59240059]
[1771832762304,0.57210472,1887.1,1886.7,0.59240059]
[1771832768103,0.0048834,1887.1,1886.7,0.59240059]
[1771832768303,0.56835387,1887.1,1886.7,0.59240059]
[1771832775110,0.56661207,1886.9,1886.3,0.59240059]
[1771832784618,0.56070907,1886.7,1886.1,0.55699571]
[1771832785013,0.56070907,1886.7,1886.2,0.55699571]
[1771832785414,0.56283504,1886.9,1886.4,0.55699571]
[1771832786322,0.56283504,1886.6,1885.9,0.55699571]
[1771832786522,0.56283504,1886.7,1886.1,0.55699571]
[1771832786717,0.56283504,1886.9,1886.3,0.55699571]
[1771832787421,1.07560603,1886.8,1886.3,0.55699571]
[1771832787620,0.57008864,1886.8,1886.3,0.55699571]
[1771832788216,0.57008864,1886.7,1886.1,0.55699571]
[1771832791021,0.57602815,1886.2,1885.8,0.56342144]
[1771832791923,0.57344194,1886.4,1885.8,0.56342144]
[1771832797117,0.58566116,1886.2,1885.8,0.00642573]
[1771832797519,0.58566116,1886.0,1885.4,0.55699571]
[1771832797726,0.58566116,1885.6,1885.1,0.55699571]
[1771832798526,0.59069079,1885.6,1885.1,0.56283938]
[1771832804432,0.59069079,1885.6,1885.1,0.00584367]
[1771832805332,0.59069079,1885.6,1885.1,0.56283938]
[1771832808032,0.59069079,1885.6,1885.0,0.56729062]
[1771832808931,0.59069079,1885.6,1885.0,0.57226797]
[1771832809930,0.58550392,1885.4,1885.0,0.00497735]
[1771832810138,0.58550392,1885.4,1884.9,0.56729062]
[1771832810429,0.58550392,1885.4,1884.7,0.56729062]
[1771832811134,0.58550392,1884.9,1884.6,0.56729062]
[1771832811335,0.58550392,1884.9,1884.3,1.79898635]
[1771832811534,0.58550392,1884.9,1884.1,1.79898635]
[1771832812232,0.58550392,1884.9,1884.1,1.80479011]
[1771832813430,0.58550392,1885.2,1884.7,1.79898635]
[1771832813733,0.58550392,1885.3,1884.7,1.79898635]
[1771832817336,0.58550392,1885.3,1884.3,1.80124732]
[1771832820538,0.58550392,1885.5,1884.6,1.80124732]
[1771832822937,0.85077392,1885.4,1884.1,0.00580376]
[1771832823133,0.58550392,1885.3,1884.1,0.00580376]
[1771832824241,0.58550392,1885.1,1884.1,0.00580376]
[1771832824630,0.58550392,1885.1,1884.4,1.80124732]
[1771832825239,0.58550392,1885.1,1884.1,0.00580376]
[1771832827238,0.58550392,1885.1,1884.3,1.80124732]
[1771832828640,0.58550392,1885.5,1884.6,1.80124732]
[1771832828839,1.09057283,1885.4,1884.6,1.80124732]
[1771832829041,0.58550392,1885.4,1884.6,1.80124732]
[1771832829742,0.58550392,1885.4,1884.3,1.80124732]
[1771832833042,0.00502963,1885.6,1884.1,0.00580376]
[1771832833043,0.58550392,1885.2,1884.1,0.00580376]
[1771832833236,0.58550392,1885.0,1884.1,0.00580376]
[1771832834545,0.58550392,1885.0,1884.2,0.56729062]
[1771832836140,0.58550392,1884.8,1884.2,0.56729062]
[1771832837350,0.58550392,1884.6,1884.1,0.57309438]
[1771832837843,0.58505029,1884.8,1884.2,0.57892204]
[1771832838546,0.58505029,1884.8,1884.1,0.00580376]
[1771832839138,0.58505029,1884.8,1884.1,0.5847258]
[1771832841049,0.58505029,1884.8,1884.1,0.00580376]
[1771832841248,0.58505029,1884.6,1884.1,0.00580376]
[1771832841449,0.58505029,1884.6,1884.1,0.5847258]
[1771832848251,0.58505029,1884.6,1884.1,0.00580376]
[1771832848642,0.58505029,1884.6,1884.1,0.5847258]
[1771832849050,0.58505029,1884.6,1884.1,0.00580376]
[1771832849450,0.58505029,1884.6,1883.8,0.57892204]
[1771832850352,0.58505029,1884.6,1883.8,0.58520184]
[1771832851947,0.58505029,1884.7,1884.0,0.57892204]
[1771832852153,0.58505029,1885.1,1884.0,0.57892204]
[1771832852453,0.58505029,1884.9,1884.0,0.57892204]
[1771832858049,0.58505029,1885.0,1884.3,0.57892204]
[1771832861053,0.58505029,1885.4,1884.5,0.57892204]
[1771832861355,0.58505029,1885.2,1884.5,0.57892204]
[1771832866861,0.58505029,1885.5,1885.0,0.57892204]
[1771832867257,0.58505029,1885.5,1884.7,0.57892204]
[1771832877963,0.58505029,1885.5,1884.4,0.60375619]
[1771832879269,0.58505029,1885.5,1884.8,0.60375619]
[1771832879463,0.02776421,1885.5,1884.9,1.80109479]
[1771832879664,0.02776421,1885.5,1885.0,0.60375619]
[1771832881766,0.58711134,1885.6,1885.2,0.60375619]
[1771832881967,0.58711134,1885.6,1885.2,0.60841786]
[1771832883475,0.00502963,1885.6,1885.2,0.60841786]
[1771832883679,0.58711134,1885.6,1885.2,0.60841786]
[1771832886478,0.58711134,1885.6,1885.2,0.00466167]
[1771832886679,0.58711134,1885.6,1885.2,0.60841786]
[1771832887584,8.4322493,1886.4,1885.6,0.60375619]
[1771832887585,0.58208171,1886.0,1885.6,0.60375619]
[1771832887877,0.58208171,1886.1,1885.6,0.60375619]
[1771832888078,0.58208171,1886.5,1885.8,0.60375619]
[1771832888382,0.58208171,1886.3,1885.8,0.60375619]
[1771832888583,0.5864113,1886.3,1885.8,0.60375619]
[1771832889581,0.5864113,1886.3,1885.7,1.80109479]
[1771832889786,0.5864113,1886.3,1885.6,2.40485098]
[1771832889986,0.5864113,1886.3,1885.7,0.60375619]
[1771832895489,0.58208171,1886.1,1885.4,0.60375619]
[1771832902501,0.56134545,1885.7,1885.2,0.5581361]
[1771832910407,0.56134545,1885.8,1885.4,0.55347443]
[1771832913611,0.56134545,1885.9,1885.4,0.55347443]
[1771832915107,0.56134545,1886.1,1885.6,0.55347443]
[1771832918518,0.00432959,1886.3,1885.7,0.55347443]
[1771832918709,0.00432959,1886.3,1885.9,0.55347443]
[1771832922217,0.56567504,1886.3,1885.9,0.55347443]
[1771832928422,0.00432959,1886.3,1885.9,0.55347443]
[1771832928722,0.58008796,1886.3,1885.9,0.55347443]
[1771832933918,0.00432959,1886.3,1885.9,0.55347443]
[1771832934121,0.57575837,1886.8,1886.3,0.57862389]
[1771832935020,0.5825383,1886.8,1886.3,0.57862389]
[1771832940623,2.38363309,1886.8,1886.1,0.57862389]
[1771832940830,0.57575837,1886.5,1885.9,0.57862389]
[1771832950641,0.57575837,1886.3,1885.9,0.57862389]
[1771832952338,0.57575837,1886.3,1885.6,0.57862389]
[1771832952539,0.50596884,1886.2,1885.6,0.57862389]
[1771832952739,1.08171638,1886.1,1885.6,0.57862389]
[1771832952944,0.57575837,1886.4,1885.4,0.57862389]
[1771832953142,8.01802049,1886.3,1885.4,0.57862389]
[1771832953343,1.08171859,1886.2,1885.4,0.57862389]
[1771832953643,0.57575837,1886.2,1885.4,0.57862389]
[1771832955746,0.57575837,1886.0,1885.4,0.57862389]
[1771832961251,0.60445434,1886.2,1885.4,0.57862389]
[1771832961551,1.10984556,1886.1,1885.4,0.57862389]
[1771832961848,0.60445434,1886.1,1885.4,0.57862389]
[1771832976660,0.60445434,1885.9,1885.4,0.57862389]
[1771832977451,0.60445434,1885.9,1885.2,0.58055615]
[1771832977659,0.60445434,1885.7,1885.2,0.00466167]
[1771832977957,0.60445434,1885.5,1885.2,0.00033208]
[1771832978562,0.60445434,1885.5,1884.9,0.57589448]
[1771832978959,0.60445434,1885.5,1884.8,0.57589448]
[1771832979255,0.60445434,1885.3,1884.5,0.57589448]
[1771832979759,0.60871349,1885.3,1884.5,0.58191501]
[1771832985363,0.60871349,1885.3,1884.5,0.00602053]
[1771832986359,0.00942672,1885.3,1884.5,0.00602053]
[1771832986554,0.00942672,1885.3,1884.5,0.58191501]
[1771832990161,0.5866296,1885.1,1884.5,0.00602053]
[1771832990468,0.59088875,1885.3,1884.6,0.55361573]
[1771832992267,0.00425915,1885.3,1884.6,0.55361573]
[1771832997168,0.5866296,1885.9,1884.9,0.55361573]
[1771832998160,0.59243457,1885.9,1884.9,0.55361573]
[1771832999468,0.5866296,1885.7,1884.9,0.55361573]
[1771833002362,0.5866296,1885.5,1884.9,0.55361573]
[1771833002568,0.5866296,1885.5,1884.7,0.55361573]
[1771833003278,0.5866296,1885.4,1884.7,0.55361573]
[1771833006676,0.5866296,1885.4,1884.9,0.55361573]
[1771833007776,0.5866296,1885.3,1884.7,0.55361573]
[1771833008076,0.5866296,1885.1,1884.7,0.55361573]
[1771833010172,2.38792228,1885.4,1884.7,0.55361573]
[1771833010379,0.5866296,1885.2,1884.7,0.55361573]
[1771833014980,0.5866296,1885.1,1884.6,0.55361573]
[1771833015283,0.5866296,1885.1,1884.5,0.55963626]
[1771833017679,0.50543905,1885.0,1884.5,0.55963626]
[1771833017883,0.56570883,1885.1,1884.5,0.55963626]
[1771833018083,1.07115035,1885.0,1884.5,0.55963626]
[1771833018285,0.56570883,1885.0,1884.5,0.55963626]
[1771833026386,0.56570883,1885.1,1884.5,0.55963626]
[1771833029990,0.56570883,1884.9,1884.5,0.55963626]
[1771833041498,0.56570883,1884.9,1884.2,0.55913605]
[1771833041699,0.50634261,1884.8,1884.4,0.55913605]
[1771833041896,0.56570883,1885.0,1884.4,0.55913605]
[1771833042097,8.04282515,1884.9,1884.4,0.55913605]
[1771833042297,0.50634271,1884.8,1884.4,0.55913605]
[1771833042497,0.52802777,1884.7,1884.4,0.5646621]
[1771833042701,0.56570883,1884.9,1884.4,0.5646621]
[1771833042897,0.52802775,1884.8,1884.4,0.5646621]
[1771833043097,0.52802775,1884.7,1884.4,0.5646621]
[1771833043394,0.56570883,1884.9,1884.4,0.5646621]
[1771833043694,0.52798744,1884.8,1884.4,0.5646621]
[1771833043892,0.52798744,1884.7,1884.4,0.5646621]
[1771833044093,0.56570883,1884.9,1884.4,0.5646621]
[1771833044298,0.52796531,1884.8,1884.4,0.5646621]
[1771833044493,0.52796531,1884.7,1884.4,0.5646621]
[1771833044689,0.56570883,1884.9,1884.4,0.5646621]
[1771833044895,1.09367414,1884.8,1884.4,0.5646621]
[1771833045195,0.56570883,1884.6,1884.4,0.00552605]
[1771833046395,0.56570883,1884.8,1884.4,0.5646621]
[1771833046695,1.80129268,1885.0,1884.4,0.5646621]
[1771833046696,1.09357032,1884.7,1884.4,0.5646621]
[1771833046888,0.56570883,1884.7,1884.4,0.5646621]
[1771833047486,0.56570883,1884.7,1884.4,0.00552605]
[1771833048393,0.56570883,1884.7,1884.1,3.19235948]
[1771833048697,0.56570883,1884.7,1884.2,0.5805886]
[1771833049597,0.60964673,1884.4,1883.9,0.5805886]
[1771833050599,0.61363379,1884.4,1883.9,0.58647439]
[1771833051601,0.61363379,1884.4,1884.1,0.5805886]
[1771833051800,0.61363379,1884.4,1884.0,2.38188128]
[1771833056198,0.61363379,1884.4,1884.1,0.5805886]
[1771833057500,0.61363379,1884.4,1884.0,1.80129268]
[1771833057701,0.61363379,1884.4,1884.0,2.38188128]
[1771833058701,0.00398706,1884.4,1884.1,0.5805886]
[1771833059002,1e-08,1884.4,1884.1,0.5805886]
[1771833060295,0.60964673,1884.7,1884.3,0.5805886]
[1771833060495,0.60964673,1884.9,1884.5,0.5805886]
[1771833060695,1.13634146,1884.8,1884.5,0.5805886]
[1771833060996,0.60964673,1884.8,1884.5,0.5805886]
[1771833061302,0.61415239,1884.8,1884.5,0.5805886]
[1771833062100,0.61415239,1884.8,1884.4,0.5805886]
[1771833062498,0.61415239,1884.8,1884.1,2.38188128]
[1771833062697,0.61415239,1884.8,1884.2,0.5805886]
[1771833063595,0.61415239,1884.8,1884.2,0.58490822]
[1771833064897,0.00450566,1884.8,1884.2,0.58490822]
[1771833065103,0.60964673,1885.1,1884.7,2.38188128]
[1771833065303,0.60964673,1885.1,1884.7,0.5805886]
[1771833065704,0.60964673,1885.2,1884.7,0.5805886]
[1771833066098,0.61371673,1885.2,1884.7,0.5805886]
[1771833067504,0.08677888,1885.2,1884.7,0.5805886]
[1771833067704,0.00407,1885.2,1884.7,0.5805886]
[1771833067903,0.61371673,1885.2,1884.7,0.5805886]
[1771833068103,0.00407,1885.2,1884.7,0.5805886]
[1771833069608,0.61371673,1885.2,1884.7,0.5805886]
[1771833070707,0.00407,1885.2,1884.7,0.5805886]
[1771833075510,0.60964673,1885.7,1885.0,0.5805886]
[1771833075814,1.13548592,1885.6,1885.0,0.5805886]
[1771833076110,0.60964673,1885.6,1885.0,0.5805886]
[1771833076614,0.61602533,1885.6,1885.0,0.5805886]
[1771833091022,0.8423445,1885.4,1885.0,0.5805886]
[1771833091328,0.8423445,1885.4,1884.4,0.79279096]
[1771833091624,0.8423445,1885.2,1884.3,0.88091985]
[1771833091825,0.8423445,1885.0,1884.3,0.88091985]
[1771833094131,0.8423445,1885.3,1884.3,0.88091985]
[1771833094429,0.52718746,1885.2,1884.6,0.88091985]
[1771833094623,0.8423445,1885.3,1884.6,0.88091985]
[1771833097724,1.80774891,1885.6,1884.6,0.88091985]
[1771833097725,0.8423445,1885.1,1884.6,0.88091985]
[1771833101636,0.8423445,1885.4,1884.6,0.88091985]
[1771833101933,1.36960246,1885.3,1884.6,0.88091985]
[1771833102135,0.52725796,1885.2,1884.6,0.88091985]
[1771833102333,0.8423445,1885.3,1884.6,0.88091985]
[1771833102633,0.52725041,1885.2,1884.6,0.88091985]
[1771833102833,0.8423445,1885.5,1884.6,0.88091985]
[1771833103033,0.8423445,1885.3,1884.6,0.88091985]
[1771833115644,0.52744675,1885.2,1884.6,0.88091985]
[1771833115839,1.28625586,1885.1,1884.6,0.88091985]
[1771833120747,1.28625586,1885.5,1884.6,0.88091985]
[1771833121046,4.44994213,1885.6,1884.6,0.88091985]
[1771833121047,1.28625586,1885.3,1884.6,0.88091985]
[1771833121247,1.8138461,1885.2,1884.6,0.88091985]
[1771833121451,1.28625586,1885.2,1884.6,0.88091985]
[1771833131556,1.28625586,1885.0,1884.6,0.88091985]
[1771833135662,1.28625586,1885.0,1884.4,1.25826088]
[1771833135857,1.28625586,1884.8,1884.2,1.2625805]
[1771833136062,1.28625586,1884.8,1884.3,1.25826088]
[1771833152678,1.60682203,1885.2,1884.7,1.52423723]
[1771833152877,1.60682203,1885.0,1884.7,1.52423723]
[1771833153683,0.03173238,1885.3,1884.7,1.52423723]
[1771833153980,0.03173238,1885.1,1884.7,1.52423723]
[1771833161887,0.11104885,1885.3,1884.7,1.52423723]
[1771833162088,0.11104885,1885.1,1884.8,3.5594733]
[1771833162390,0.00980721,1885.2,1884.8,3.5594733]
[1771833162884,0.00980721,1885.2,1884.8,1.75816919]
[1771833163091,0.00980721,1885.2,1884.9,1.81363003]
[1771833163693,0.00755354,1885.4,1884.9,1.81363003]
[1771833163891,0.00755354,1885.2,1884.9,1.81363003]
[1771833164689,0.02511829,1885.5,1884.9,1.81363003]
[1771833164892,7.58456311,1885.4,1884.9,1.81363003]
[1771833165093,0.5525731,1885.3,1884.9,1.81363003]
[1771833165293,0.52745481,1885.2,1884.9,1.81363003]
[1771833165494,0.02511829,1885.3,1884.9,1.81363003]
[1771833165795,0.52747418,1885.2,1884.9,1.81363003]
[1771833165994,0.03721637,1885.5,1884.9,1.81363003]
[1771833166190,7.59695187,1885.4,1884.9,1.81363003]
[1771833166391,0.52747418,1885.3,1884.9,1.81363003]
[1771833166591,0.52747418,1885.2,1884.9,1.81363003]
[1771833166793,0.03721637,1885.4,1884.9,1.81363003]
[1771833166992,0.57404922,1885.3,1884.9,1.81363003]
[1771833167191,0.52744622,1885.2,1884.9,1.81363003]
[1771833167396,0.046603,1885.3,1884.9,1.81363003]
[1771833170099,0.09162929,1885.4,1884.9,1.81363003]
[1771833170294,0.52738301,1885.3,1884.9,1.81363003]
[1771833170595,0.09162929,1885.4,1884.9,1.81363003]
[1771833170797,0.63181811,1885.3,1884.9,1.81363003]
[1771833171000,0.10443977,1885.3,1884.9,1.81363003]
[1771833173502,0.5274102,1885.2,1884.9,1.81363003]
[1771833173703,0.10443977,1885.3,1884.9,1.81363003]
[1771833173902,0.52741021,1885.2,1884.9,1.81363003]
[1771833174202,0.10443977,1885.3,1884.9,1.81363003]
[1771833174401,0.52743735,1885.2,1884.9,1.81363003]
[1771833174602,0.10443977,1885.3,1884.9,1.81363003]
[1771833174902,0.52743735,1885.2,1884.9,1.81363003]
[1771833175098,0.10443977,1885.3,1884.9,1.81363003]
[1771833175299,0.52743734,1885.2,1884.9,1.81363003]
[1771833175500,0.10443977,1885.3,1884.9,1.81363003]
[1771833175700,0.52747408,1885.2,1884.9,1.81363003]
[1771833175902,0.10443977,1885.3,1884.9,1.81363003]
[1771833176102,0.52747409,1885.2,1884.9,1.81363003]
[1771833176300,0.10443977,1885.3,1884.9,1.81363003]
[1771833176605,0.527521,1885.2,1884.9,1.81363003]
[1771833176798,0.10443977,1885.3,1884.9,1.81363003]
[1771833176998,0.527521,1885.2,1884.9,1.81363003]
[1771833177202,0.10443977,1885.3,1884.9,1.81363003]
[1771833177404,0.52757957,1885.2,1884.9,1.81363003]
[1771833177603,0.10443977,1885.3,1884.9,1.81363003]
[1771833177893,0.52757957,1885.2,1884.9,1.81363003]
[1771833178095,0.10443977,1885.3,1884.9,1.81363003]
[1771833178296,0.52757957,1885.2,1884.9,1.81363003]
[1771833178507,0.10443977,1885.3,1884.9,1.81363003]
[1771833178701,0.52765237,1885.2,1884.9,1.81363003]
[1771833179000,0.10443977,1885.3,1884.9,1.81363003]
[1771833179203,0.52765237,1885.2,1884.9,1.81363003]
[1771833179502,0.10443977,1885.3,1884.9,1.81363003]
[1771833179703,0.52774222,1885.2,1884.9,1.81363003]
[1771833180005,0.10443977,1885.3,1884.9,1.81363003]
[1771833180205,0.74022088,1885.2,1884.9,1.81363003]
[1771833180504,0.21247861,1885.2,1884.9,1.81363003]
[1771833180706,0.22389179,1885.4,1884.9,1.81363003]
[1771833181004,7.78891478,1885.3,1884.9,1.81363003]
[1771833181206,0.52784698,1885.2,1884.9,1.81363003]
[1771833181504,0.52784698,1885.1,1884.9,1.81363003]
[1771833181706,0.22389179,1885.3,1884.9,1.81363003]